{"text_format":"1","workbook":"xlsx","n_sheets":3,"sheets":["drjat","ص.3","أ.3ع"],"not_rendered":{"charts":0,"images":3,"macros":1,"external_links":2,"defined_names":16,"comments":0,"pivot_tables":0},"unopened":[],"bounds":{"document_bytes":16777216,"sheet_cells":100000,"rows_first":2000,"rows_last":500,"rows_between":2000,"halvings":0,"cell_chars":16384,"cell_head_chars":4096},"cells_cut":0,"cells_raw":0,"read":"whole","date_system":"1900"}

{"sheet":"drjat","index":0,"n_rows":21,"n_cols":38,"rows_kept":21,"cut":false,"hidden":true,"merged":[[20,20,20,27],[1,1,1,37],[2,1,3,1],[2,2,3,9],[2,11,2,27],[2,29,2,37],[3,11,3,18],[3,20,3,27],[3,29,3,32],[3,34,3,37]]}
[1,2,3,4,5,6,7,8,9,10,11,12,13,14,15,16,17,18,19,20,21,22,23,24,25,26,27,28,29,30,31,32,33,34,35,36,37,38]
[null,"توزيــــع الدرجـــــــــــــــــــــــــــات"]
[null,"الصف","الصف الأول",null,null,null,null,null,null,null,null,"الصف الثاني",null,null,null,null,null,null,null,null,null,null,null,null,null,null,null,null,null,"الصف الثالث"]
[null,null,null,null,null,null,null,null,null,null,null,"القسم العلمي",null,null,null,null,null,null,null,null,"القسم الأدبي",null,null,null,null,null,null,null,null,"القسم العلمي",null,null,null,null,"القسم الأدبي"]
[null,"المادة","عدد الحصص","أعمــال السنة","درجة الأمتحان","المجمـــــــوع","النهاية الكبرى","النهاية الصغرى","درجة التكميلي","الــ 40 %",null,"عدد الحصص","أعمــال السنة","درجة الأمتحان","المجمـــــــوع","النهاية الكبرى","النهاية الصغرى","درجة التكميلي","الــ 40 %",null,"عدد الحصص","أعمــال السنة","درجة الأمتحان","المجمـــــــوع","النهاية الكبرى","النهاية الصغرى","درجة التكميلي","الــ 40 %",null,"عدد الحصص","الفترة الأولى","الفترة الثاني","المجمـــــــوع",null,"عدد الحصص","الفترة الأولى","الفترة الثاني","المجمـــــــوع"]
[null,"التربية الإسلامية",1,10,10,20,40,20,null,{"$f":"IF(H6=\"\",\"\",\"%\"&\" \" &H6*0.4)","v":"% 8"},null,1,10,10,20,40,20,null,{"$f":"IF(Q6=\"\",\"\",\"%\"&\" \" &Q6*0.4)","v":"% 8"},null,1,10,10,20,40,20,null,{"$f":"IF(Z6=\"\",\"\",\"%\"&\" \" &Z6*0.4)","v":"% 8"},null,1,8,8,16,null,1,8,8,16]
[null,"اللغة العربية",2,20,20,40,80,40,null,{"$f":"IF(H7=\"\",\"\",\"%\"&\" \" &H7*0.4)","v":"% 16"},null,3,30,30,60,120,60,null,{"$f":"IF(Q7=\"\",\"\",\"%\"&\" \" &Q7*0.4)","v":"% 24"},null,4,40,40,80,160,80,null,{"$f":"IF(Z7=\"\",\"\",\"%\"&\" \" &Z7*0.4)","v":"% 32"},null,3,24,24,48,null,4,32,32,64]
[null,"اللغة الإنجليزية",2,20,20,40,80,40,null,"% 16",null,2,20,20,40,80,40,null,"% 16",null,3,30,30,60,120,60,null,"% 24",null,2,16,16,32,null,2,16,16,32]
[null,"تقنية المعلومات",1,10,10,20,40,20,null,"% 8",null,1,10,10,20,40,20,null,"% 8",null,1,10,10,20,40,20,null,"% 8",null,1,8,8,16,null,1,8,8,16]
[null,"الرياضيات",3,30,30,60,120,60,null,"% 24",null,3,30,30,60,120,60,null,"% 24",null,null,null,null,null,null,null,null,"",null,3,24,24,48]
[null,"الإحصاء",null,null,null,null,null,null,null,"",null,1,10,10,20,40,20,null,"% 8",null,1,10,10,20,40,20,null,"% 8",null,1,8,8,16,null,1,8,8,16]
[null,"الفيزياء",2,20,20,40,80,40,null,"% 16",null,3,30,30,60,120,60,null,"% 24",null,null,null,null,null,null,null,null,"",null,3,24,24,48]
[null,"الكيمياء",2,20,20,40,80,40,null,"% 16",null,2,20,20,40,80,40,null,"% 16",null,null,null,null,null,null,null,null,"",null,2,16,16,32]
[null,"الاحياء",2,20,20,40,80,40,null,"% 16",null,2,20,20,40,80,40,null,"% 16",null,null,null,null,null,null,null,null,"",null,2,16,16,32]
[null,"التاريخ",1,10,10,20,40,20,null,"% 8",null,null,null,null,null,null,null,null,"",null,2,20,20,40,80,40,null,"% 16",null,null,null,null,null,null,2,16,16,32]
[null,"الجغرافيا",1,10,10,20,40,20,null,"% 8",null,null,null,null,null,null,null,null,"",null,2,20,20,40,80,40,null,"% 16",null,null,null,null,null,null,2,16,16,32]
[null,"الفلسفة",null,null,null,null,null,null,null,"",null,null,null,null,null,null,null,null,"",null,2,20,20,40,80,40,null,"% 16",null,null,null,null,null,null,2,16,16,32]
[null,"علم الاجتماع",null,null,null,null,null,null,null,{"$f":"IF(H18=\"\",\"\",\"%\"&\" \" &H18*0.4)","v":""},null,null,null,null,null,null,null,null,{"$f":"IF(Q18=\"\",\"\",\"%\"&\" \" &Q18*0.4)","v":""},null,1,10,10,20,40,20,null,{"$f":"IF(Z18=\"\",\"\",\"%\"&\" \" &Z18*0.4)","v":"% 8"},null,null,null,null,null,null,1,8,8,16]
[null,"علم النفس",null,null,null,null,null,null,null,"",null,null,null,null,null,null,null,null,"",null,1,10,10,20,40,20,null,"% 8",null,null,null,null,null,null,2,16,16,32]
[]
[null,null,null,null,null,null,null,null,null,null,null,null,null,null,null,null,null,null,null,null,{"$f":"SUM(X6:X20)","v":360},null,null,null,null,null,null,null,null,null,{"$f":"SUM(AE6:AE20)","v":144},null,null,null,null,{"$f":"SUM(AJ6:AJ20)","v":144}]

{"sheet":"ص.3","index":1,"n_rows":801,"n_cols":35,"rows_kept":801,"cut":false,"hidden":false,"merged":[[45,2,45,5],[45,6,45,11],[45,12,45,16],[40,4,40,16],[41,2,41,16],[42,2,42,16],[43,2,43,16],[44,2,44,5],[44,6,44,11],[44,12,44,16],[38,2,38,3],[26,2,26,16],[28,2,28,8],[28,9,28,10],[28,11,28,13],[29,2,29,16],[30,2,30,16],[32,4,32,11],[34,2,35,3],[34,4,34,16],[36,2,36,3],[37,2,37,3],[5,2,5,16],[20,2,20,5],[20,6,20,11],[20,12,20,16],[21,2,21,5],[21,6,21,11],[21,12,21,16],[19,2,19,16],[6,2,6,16],[8,4,8,11],[8,21,8,22],[10,2,11,3],[10,4,10,16],[12,2,12,3],[13,2,13,3],[14,2,14,3],[16,4,16,16],[17,2,17,16],[18,2,18,16],[2,2,2,16],[4,2,4,8],[4,9,4,10],[4,11,4,13],[4,21,4,22]]}
[null,null,null,null,null,null,null,null,null,null,null,null,null,null,null,null,null,null,"ورقة ",null,null,1]
[]
[null,null,"بطـاقة تقـدير الدرجـات لمرحـلة التعليـم الثانـوي"]
[]
[null,null,"للصـف الثالث القسم",null,null,null,null,null,null,"العلمـــي",null,"  -  الفترة الأولى",null,null,null,null,null,null,null,null,null,"شهادة واحدة",null,null,null,null,null,null,null,null,null,null,null,null,"شهادة واحدة"]
[null,null,"للعام الدراسي : 1439 - 1440 هجري     -    2018 - 2019 ميلادي",null,null,null,null,null,null,null,null,null,null,null,null,null,null,null,null,null,null,"من","إلى",null,null,null,null,null,null,null,null,null,null,null,"شهادتين"]
[null,null,"مدرسة : 24 ديسمبر",null,null,null,null,null,null,null,null,null,null,null,null,null,null,null,null,null,null,1,2]
[]
[null,null,"اسم الطالب : ",null,"طالب1",null,null,null,null,null,null,null,null,null,null,"الفصل : ","12/3",null,null,null,null,{"$f":"MATCH($V$5,$AI$5:$AI$6,0)","v":1}]
[]
[null,null,"النهـــــــايات",null,"المــــــــواد الدراســـــــــيـة"]
[null,null,null,null,"التربية الإسلامية","اللغة العــــــربية","اللغة الإنجليزية","تقنية المعلومات","الرياضيــــــــــات","الأحصـــــــــــــاء","الفيزيــــــــــــاء","الكيميــــــــــــاء","الأحيــــــــــــــاء",null,null,"المجمـــــــــــــوع","التربية البدنية"]
[null,null,"النهاية الكـــبرى",null,8,24,16,8,24,8,24,16,16,null,null,144]
[null,null,"النهاية الصغرى",null,4,12,8,4,12,4,12,8,8,null,null,72]
[null,null,"درجة الطـــــــــالب",null,8,23,13,7,21,9,"19",9,10,null,null,null,null,null,null,null,null,null,"العلمـــي"]
[]
[null,null,"نتيجة الطالب : ",null,null,null,null,null,null,null,null,null,null,null,null,null,null,null,null,null,null,null,"الأدبــــــي"]
[]
[null,null,"شرط نجاح الطالب حصوله على  50 % من المجموع "]
[null,null,"التوقيعـــــــــــــــــات"]
[null,null,"رائد الفصل",null,null,null,"مدير المدرسة",null,null,null,null,null,"ولي الامر"]
[]
[]
[]
[]
[]
[null,null,"بطـاقة تقـدير الدرجـات لمرحـلة التعليـم الثانـوي"]
[]
[null,null,"للصـف الثالث القسم",null,null,null,null,null,null,{"$f":"J5","v":"العلمـــي"},null,"  -  الفترة الأولى"]
[null,null,"للعام الدراسي : 1439 - 1440 هجري     -    2018 - 2019 ميلادي"]
[null,null,"مدرسة : 24 ديسمبر"]
[]
[null,null,"اسم الطالب : ",null,"طالب2",null,null,null,null,null,null,null,null,null,null,"الفصل : ","6/3"]
[]
[null,null,"النهـــــــايات",null,"المــــــــواد الدراســـــــــيـة"]
[null,null,null,null,"التربية الإسلامية","اللغة العــــــربية","اللغة الإنجليزية","تقنية المعلومات","الرياضيــــــــــات","الأحصـــــــــــــاء","الفيزيــــــــــــاء","الكيميــــــــــــاء","الأحيــــــــــــــاء",null,null,"المجمـــــــــــــوع","التربية البدنية"]
[null,null,"النهاية الكـــبرى",null,8,24,16,8,24,8,24,16,16,null,null,144]
[null,null,"النهاية الصغرى",null,4,12,8,4,12,4,12,8,8,null,null,72]
[null,null,"درجة الطـــــــــالب",null,6,16,13,6,20,6,"15",9,10]
[]
[null,null,"نتيجة الطالب : "]
[]
[null,null,"شرط نجاح الطالب حصوله على  50 % من المجموع "]
[null,null,"التوقيعـــــــــــــــــات"]
[null,null,"رائد الفصل",null,null,null,"مدير المدرسة",null,null,null,null,null,"ولي الامر"]
[]
[]
[]
[]
[]
[]
[]
[]
[]
[]
[]
[null,null,null,null,"شدى محمد علي الشاوش",null,null,null,null,null,null,null,null,null,null,null,"2/3"]
[]
[]
[]
[]
[]
[null,null,null,null,8,28,15,8,8,14,15,16,7,15,null,134]
[]
[null,null,null,null,"ناجح بتقدير ممتاز الترتيب الرابع",7,8]
[]
[]
[]
[]
[]
[]
[]
[]
[]
[]
[]
[]
[]
[]
[]
[null,null,null,null,"اماني البهلول محمد مادي",null,null,null,null,null,null,null,null,null,null,null,"1/3"]
[]
[]
[]
[]
[]
[]
[]
[null,null,null,null,27,8,15]
[]
[]
[]
[]
[]
[]
[]
[]
[]
[]
[]
[]
[]
[]
[]
[null,null,null,null,"ايمان محمد سالم خلف الله",null,null,null,null,null,null,null,null,null,null,null,"2/3"]
[]
[]
[]
[]
[]
[]
[]
[null,null,null,null,25,8,14]
[]
[]
[]
[]
[]
[]
[]
[]
[]
[]
[]
[]
[]
[]
[]
[null,null,null,null,"دعاء مصطفى مختار المجربي",null,null,null,null,null,null,null,null,null,null,null,"1/3"]
[]
[]
[]
[]
[]
[]
[]
[null,null,null,null,21,8,9]
[]
[]
[]
[]
[]
[]
[]
[]
[]
[]
[]
[]
[]
[]
[]
[null,null,null,null,"راوسي عبدالرزاق محمد العش",null,null,null,null,null,null,null,null,null,null,null,"2/3"]
[]
[]
[]
[]
[]
[]
[]
[null,null,null,null,17,8,12]
[]
[]
[]
[]
[]
[]
[]
[]
[]
[]
[]
[]
[]
[]
[]
[null,null,null,null,"رتاج فتحي محمد طريش",null,null,null,null,null,null,null,null,null,null,null,"2/3"]
[]
[]
[]
[]
[]
[]
[]
[null,null,null,null,28,8,16]
[]
[]
[]
[]
[]
[]
[]
[]
[]
[]
[]
[]
[]
[]
[]
[null,null,null,null,"رندة سالم عبدالسلام محمد",null,null,null,null,null,null,null,null,null,null,null,"1/3"]
[]
[]
[]
[]
[]
[]
[]
[null,null,null,null,15,4,7]
[]
[]
[]
[]
[]
[]
[]
[]
[]
[]
[]
[]
[]
[]
[]
[null,null,null,null,"ريان فتحي رجب هدنه",null,null,null,null,null,null,null,null,null,null,null,"2/3"]
[]
[]
[]
[]
[]
[]
[]
[null,null,null,null,13,5,7]
[]
[]
[]
[]
[]
[]
[]
[]
[]
[]
[]
[]
[]
[]
[]
[null,null,null,null,"ريان يحيى احمد اعرج",null,null,null,null,null,null,null,null,null,null,null,"1/3"]
[]
[]
[]
[]
[]
[]
[]
[null,null,null,null,18,8,11]
[]
[]
[]
[]
[]
[]
[]
[]
[]
[]
[]
[]
[]
[]
[]
[null,null,null,null,"ريم عمران اعمار ابوجناح",null,null,null,null,null,null,null,null,null,null,null,"1/3"]
[]
[]
[]
[]
[]
[]
[]
[null,null,null,null,28,8,16]
[]
[]
[]
[]
[]
[]
[]
[]
[]
[]
[]
[]
[]
[]
[]
[null,null,null,null,"ريم محمد محمد خليفة",null,null,null,null,null,null,null,null,null,null,null,"2/3"]
[]
[]
[]
[]
[]
[]
[]
[null,null,null,null,18,5,11]
[]
[]
[]
[]
[]
[]
[]
[]
[]
[]
[]
[]
[]
[]
[]
[null,null,null,null,"سجى عبدالسلام صالح عبدالقادر",null,null,null,null,null,null,null,null,null,null,null,"1/3"]
[]
[]
[]
[]
[]
[]
[]
[null,null,null,null,15,5,8]
[]
[]
[]
[]
[]
[]
[]
[]
[]
[]
[]
[]
[]
[]
[]
[null,null,null,null,"سهيلة معمر الهادي القرقوطي",null,null,null,null,null,null,null,null,null,null,null,"1/3"]
[]
[]
[]
[]
[]
[]
[]
[null,null,null,null,26,8,14]
[]
[]
[]
[]
[]
[]
[]
[]
[]
[]
[]
[]
[]
[]
[]
[null,null,null,null,"شدى محمد علي الشاوش",null,null,null,null,null,null,null,null,null,null,null,"2/3"]
[]
[]
[]
[]
[]
[]
[]
[null,null,null,null,14,8,9]
[]
[]
[]
[]
[]
[]
[]
[]
[]
[]
[]
[]
[]
[]
[]
[null,null,null,null,"شهد احمد عبدالسلام عيسى",null,null,null,null,null,null,null,null,null,null,null,"2/3"]
[]
[]
[]
[]
[]
[]
[]
[null,null,null,null,24,8,14]
[]
[]
[]
[]
[]
[]
[]
[]
[]
[]
[]
[]
[]
[]
[]
[null,null,null,null,"شيماء عبدالوهاب علي النفاتي",null,null,null,null,null,null,null,null,null,null,null,"1/3"]
[]
[]
[]
[]
[]
[]
[]
[null,null,null,null,25,8,16]
[]
[]
[]
[]
[]
[]
[]
[]
[]
[]
[]
[]
[]
[]
[]
[null,null,null,null,"فاطمة فرج خليفة العريشية",null,null,null,null,null,null,null,null,null,null,null,"1/3"]
[]
[]
[]
[]
[]
[]
[]
[null,null,null,null,29,8,16]
[]
[]
[]
[]
[]
[]
[]
[]
[]
[]
[]
[]
[]
[]
[]
[null,null,null,null,"لجين عبدالعاطي باكير الكحيلي",null,null,null,null,null,null,null,null,null,null,null,"1/3"]
[]
[]
[]
[]
[]
[]
[]
[null,null,null,null,23,7,14]
[]
[]
[]
[]
[]
[]
[]
[]
[]
[]
[]
[]
[]
[]
[]
[null,null,null,null,"ملاك ساسي عبدالحميد الحضيري",null,null,null,null,null,null,null,null,null,null,null,"1/3"]
[]
[]
[]
[]
[]
[]
[]
[null,null,null,null,18,8,8]
[]
[]
[]
[]
[]
[]
[]
[]
[]
[]
[]
[]
[]
[]
[]
[null,null,null,null,"مها عبدالعالي مفتاح ابوزويدة",null,null,null,null,null,null,null,null,null,null,null,"2/3"]
[]
[]
[]
[]
[]
[]
[]
[null,null,null,null,16,5,11]
[]
[]
[]
[]
[]
[]
[]
[]
[]
[]
[]
[]
[]
[]
[]
[null,null,null,null,"ميروكة احمد منصور هجاجية",null,null,null,null,null,null,null,null,null,null,null,"2/3"]
[]
[]
[]
[]
[]
[]
[]
[null,null,null,null,20,6,15]
[]
[]
[]
[]
[]
[]
[]
[]
[]
[]
[]
[]
[]
[]
[]
[null,null,null,null,"نجلاء محمد علي انويجي",null,null,null,null,null,null,null,null,null,null,null,"2/3"]
[]
[]
[]
[]
[]
[]
[]
[null,null,null,null,28,8,14]
[]
[]
[]
[]
[]
[]
[]
[]
[]
[]
[]
[]
[]
[]
[]
[null,null,null,null,"ندى عبدالمجيد عبدالله عكريم",null,null,null,null,null,null,null,null,null,null,null,"2/3"]
[]
[]
[]
[]
[]
[]
[]
[null,null,null,null,29,8,14]
[]
[]
[]
[]
[]
[]
[]
[]
[]
[]
[]
[]
[]
[]
[]
[null,null,null,null,"نمارق عبدالعزيز علي نحيبه",null,null,null,null,null,null,null,null,null,null,null,"2/3"]
[]
[]
[]
[]
[]
[]
[]
[null,null,null,null,18,7,13]
[]
[]
[]
[]
[]
[]
[]
[]
[]
[]
[]
[]
[]
[]
[]
[null,null,null,null,"نهلة عبدالسلام محمد النفاتي",null,null,null,null,null,null,null,null,null,null,null,"2/3"]
[]
[]
[]
[]
[]
[]
[]
[null,null,null,null,23,8,16]
[]
[]
[]
[]
[]
[]
[]
[]
[]
[]
[]
[]
[]
[]
[]
[null,null,null,null,"هالة ناصر امحمد الرقيعي",null,null,null,null,null,null,null,null,null,null,null,"1/3"]
[]
[]
[]
[]
[]
[]
[]
[null,null,null,null,22,7,12]
[]
[]
[]
[]
[]
[]
[]
[]
[]
[]
[]
[]
[]
[]
[]
[null,null,null,null,"هداية محمد عبيد العزيبي",null,null,null,null,null,null,null,null,null,null,null,"2/3"]
[]
[]
[]
[]
[]
[]
[]
[null,null,null,null,23,7,14]
[]
[]
[]
[]
[]
[]
[]
[]
[]
[]
[]
[]
[]
[]
[]
[null,null,null,null,"هية فتحي عمر العطوي",null,null,null,null,null,null,null,null,null,null,null,"1/3"]
[]
[]
[]
[]
[]
[]
[]
[null,null,null,null,17,5,3]
[]
[]
[]
[]
[]
[]
[]
[]
[]
[]
[]
[]
[]
[]
[]
[null,null,null,null,"وردة حسين محمد الشكشوكي",null,null,null,null,null,null,null,null,null,null,null,"2/3"]
[]
[]
[]
[]
[]
[]
[]
[]
[]
[]
[]
[]
[]
[]
[]
[]
[]
[]
[]
[]
[]
[]
[]
[null,null,null,null,"ولاء صلاح الدين امحمد السبعي",null,null,null,null,null,null,null,null,null,null,null,"1/3"]
[]
[]
[]
[]
[]
[]
[]
[]
[]
[]
[]
[]
[]
[]
[]
[]
[]
[]
[]
[]
[]
[]
[]
[null,null,null,null,"ياسمين خيري سالم محمد",null,null,null,null,null,null,null,null,null,null,null,"1/3"]
[]
[]
[]
[]
[]
[]
[]
[]
[]
[]
[]
[]
[]
[]
[]
[]
[]
[]
[]
[]
[]
[]
[]
[null,null,null,null,"ياقوت اسامة صالح بن يسعد",null,null,null,null,null,null,null,null,null,null,null,"2/3"]

{"sheet":"أ.3ع","index":2,"n_rows":17,"n_cols":46,"rows_kept":17,"cut":false,"hidden":false,"merged":[[1,33,2,33],[1,34,2,34],[1,35,2,35],[1,36,2,36],[1,37,2,45],[1,32,2,32],[0,3,0,25],[1,0,2,0],[1,1,2,1],[1,2,2,2],[1,3,2,3],[1,4,2,4],[1,5,1,7],[1,8,1,10],[1,11,1,13],[1,14,1,16],[1,17,1,19],[1,20,1,22],[1,23,1,25],[1,26,1,28],[1,29,1,31]]}
[null,null,null,"دررجات أعمال السنة للصف الثالث ثانوي القسم :  العلمي",null,null,null,null,null,null,null,null,null,null,null,null,null,null,null,null,null,null,null,null,null,null,null,null,null,null,null,null,null,null,"الأول"]
["ر.م  ","رقم القيد","اسم الطالب","الجنس","الفصل","التربية الإسلامية",null,null,"اللغة العربية",null,null,"اللغة الإنجليزية",null,null,"تقنية المعلومات",null,null,"الرياضيات",null,null,"الإحصاء",null,null,"الفيزياء",null,null,"الكيمياء",null,null,"الاحياء",null,null,"المجموع الكلي للطالب","النسبة","التقدير","الترتيب","نتيجة الطالب","مــــواد الرســـــــــــــــــوب"]
[null,null,null,null,null,"الفــترة الاولـــى","الفــترة الثانيــــة","مجموع الفترتين","الفــترة الاولـــى","الفــترة الثانيــــة","مجموع الفترتين","الفــترة الاولـــى","الفــترة الثانيــــة","مجموع الفترتين","الفــترة الاولـــى","الفــترة الثانيــــة","مجموع الفترتين","الفــترة الاولـــى","الفــترة الثانيــــة","مجموع الفترتين","الفــترة الاولـــى","الفــترة الثانيــــة","مجموع الفترتين","الفــترة الاولـــى","الفــترة الثانيــــة","مجموع الفترتين","الفــترة الاولـــى","الفــترة الثانيــــة","مجموع الفترتين","الفــترة الاولـــى","الفــترة الثانيــــة","مجموع الفترتين"]
[null,null,null,null,null,8,8,16,24,24,48,16,16,32,8,8,16,24,24,48,8,8,16,"24","24",48,16,16,32,16,16,32,null,null,null,null,null,1,2,3,4,5,6,7,8,9]
[1,2,3,4,5,6,7,8,9,10,11,12,13,14,15,16,17,18,19,20,21,22,23,24,25,26,27,28,29,30,31,32,33,34,35,36,37,38,39,40,41,42,43,44,45,46]
[{"$f":"IF(C6=\"\",\"\",SUBTOTAL(3,C$5:C5))","v":1},null,"طالب1","انثى","12/3",8,null,8,23,null,23,13,null,13,7,null,7,21,null,21,9,null,9,"19",null,19,9,null,9,10,null,10,119,82.638888888888886,"جيد جدا"]
[{"$f":"IF(C7=\"\",\"\",SUBTOTAL(3,C$5:C6))","v":2},null,"طالب2","دكر","6/3",6,null,6,16,null,16,13,null,13,6,null,6,20,null,20,6,null,6,"15",null,15,9,null,9,10,null,10,null,null,"راسب",null,null,"الإحصاء"]
[{"$f":"IF(C8=\"\",\"\",SUBTOTAL(3,C$5:C7))","v":3},null,"طالب3","دكر","6/3",8,null,8,22,null,22,13,null,13,8,null,8,24,null,24,7,null,7,"22",null,22,16,null,16,14,null,14,134,93.055555555555557,"ممتاز"]
[{"$f":"IF(C9=\"\",\"\",SUBTOTAL(3,C$5:C8))","v":4},null,"طالب4","دكر","6/3",4,null,4,17,null,17,15,null,15,5,null,5,16,null,16,5,null,5,15,null,15,15,null,15,9,null,9,101,70.138888888888886,"جيد فقط"]
[{"$f":"IF(C10=\"\",\"\",SUBTOTAL(3,C$5:C9))","v":5},null,"طالب5","دكر","6/3",8,null,8,22,null,22,16,null,16,8,null,8,24,null,24,8,null,8,24,null,24,16,null,16,16,null,16,142,98.611111111111114,"ممتاز"]
[{"$f":"IF(C11=\"\",\"\",SUBTOTAL(3,C$5:C10))","v":6},null,"طالب6","دكر","14/3",8,null,8,23,null,23,14,null,14,8,null,8,21,null,21,8,null,8,"24",null,24,16,null,16,16,null,16,138,95.833333333333343,"ممتاز"]
[{"$f":"IF(C12=\"\",\"\",SUBTOTAL(3,C$5:C11))","v":7},null,"طالب7","دكر","7/3",6,null,6,21,null,21,13,null,13,8,null,8,24,null,24,8,null,8,"17",null,17,0,null,0,0,null,0,null,null,"راسب",null,null,"الكيمياء","الاحياء"]
[{"$f":"IF(C13=\"\",\"\",SUBTOTAL(3,C$5:C12))","v":8},null,"طالب8","دكر","14/3",7,null,7,22,null,22,11,null,11,8,null,8,22,null,22,8,null,8,"20",null,20,14,null,14,11,null,11,123,85.416666666666657,"ممتاز"]
[{"$f":"IF(C14=\"\",\"\",SUBTOTAL(3,C$5:C13))","v":""},null,null,null,null,null,null,null,null,null,null,null,null,null,null,null,null,null,null,null,null,null,null,0]
[{"$f":"IF(C15=\"\",\"\",SUBTOTAL(3,C$5:C14))","v":""},null,null,null,null,null,null,null,null,null,null,null,null,null,null,null,null,null,null,null,null,null,null,0]
[]
[null,null,null,null,null,null,null,null,null,{"$f":"F4+I4+L4+O4+R4+U4+X4+AA4+AD4","v":144}]